bitfinex/quotes_ETHUSD_20220202
["timestamp","ask_amount","ask_price","bid_price","bid_amount"]
[1643828820851,0.53207631,2693.6,2693.5,0.1855]
[1643828821046,0.3,2694.1,2693.6,0.00201218]
[1643828821047,0.18561,2693.8,2693.6,0.00201218]
[1643828821250,1.5737702,2693.7,2693.6,0.00201218]
[1643828821646,1.5737702,2693.7,2693.4,0.78668554]
[1643828822252,1.5737702,2693.7,2693.4,0.78869772]
[1643828822898,3.83561,2693.5,2693.4,0.00201218]
[1643828823099,1.7593802,2693.5,2693.1,0.00202869]
[1643828823295,0.48561,2693.5,2693.1,0.00202869]
[1643828823495,1.57386349,2693.4,2693.1,0.00202869]
[1643828823695,0.48561,2693.5,2693.1,0.00202869]
[1643828823896,0.48561,2693.5,2693.2,1.63247897]
[1643828824096,0.18561,2693.5,2693.2,1.63247897]
[1643828824895,0.18561,2693.3,2693.1,0.00202869]
[1643828825101,0.18561,2693.7,2693.1,0.00202869]
[1643828825295,1.57384171,2693.6,2693.4,0.16791796]
[1643828825497,1.57384171,2693.6,2693.2,0.92837]
[1643828825697,0.37111,2694.1,2693.2,0.92837]
[1643828825898,0.37111,2694.1,2693.6,0.77852855]
[1643828825899,1.57374454,2694.0,2693.6,0.77852855]
[1643828826098,0.37111,2693.9,2693.6,0.77369755]
[1643828826303,0.18561,2693.7,2693.6,0.77369755]
[1643828826552,1.75935454,2693.7,2693.6,0.77369755]
[1643828826749,1.57374454,2693.7,2693.6,0.77369755]
[1643828827355,0.18561,2693.7,2693.1,4.66219]
[1643828827550,1.75935454,2693.7,2693.2,0.92834]
[1643828827754,1.57374454,2693.6,2693.2,0.92834]
[1643828828150,1.57374454,2693.6,2693.0,1.865754]
[1643828828151,0.18561,2693.5,2693.0,1.865754]
[1643828828353,1.73928902,2693.4,2693.1,0.00579364]
[1643828828553,0.18561,2693.2,2693.1,0.00085664]
[1643828828754,1.75935454,2693.2,2693.1,0.00085664]
[1643828829153,2.05935454,2693.2,2693.1,0.00085664]
[1643828829355,6.30935454,2693.2,2693.1,0.00085664]
[1643828829557,8.97009243,2693.2,2693.1,0.00085664]
[1643828829752,8.06504305,2693.2,2693.0,1.680254]
[1643828829953,5.60924454,2693.1,2693.0,1.680254]
[1643828830153,6.60924454,2693.1,2693.0,1.680254]
[1643828830409,6.79485454,2693.1,2693.0,1.680254]
[1643828831207,8.66928817,2693.1,2693.0,1.680254]
[1643828831405,8.85478817,2693.1,2693.0,1.6386647]
[1643828831604,8.85478817,2693.1,2693.0,1.6338347]
[1643828831811,5.45,2693.0,2692.3,6.4e-05]
[1643828832007,5.45,2693.0,2691.8,6.4e-05]
[1643828832008,5.64263358,2692.9,2691.8,6.4e-05]
[1643828832208,5.64263358,2692.9,2691.7,0.185764]
[1643828832209,0.17947648,2692.5,2691.7,0.185764]
[1643828832413,1.57374454,2692.4,2691.7,0.185764]
[1643828832609,3.24505454,2692.4,2691.7,6.4e-05]
[1643828832810,1.57374454,2692.3,2691.7,6.4e-05]
[1643828833011,0.37131,2692.2,2691.7,6.4e-05]
[1643828833207,0.37131,2692.2,2691.1,0.1857]
[1643828833208,1.37131,2692.2,2691.1,0.185764]
[1643828833406,1.57374454,2692.1,2691.9,0.00579458]
[1643828833607,3.63561,2692.0,2691.9,0.00579458]
[1643828833809,6.20935454,2692.0,2691.9,0.00579458]
[1643828834073,4.63561,2692.0,2691.9,0.00579458]
[1643828834473,4.63561,2692.0,2691.8,0.00579469]
[1643828834675,3.62131,2691.9,2691.8,0.00579469]
[1643828834878,7.67530599,2691.9,2691.8,0.00579469]
[1643828835075,5.3104411,2691.9,2691.8,0.00579469]
[1643828835476,11.26786684,2691.9,2691.8,0.00579469]
[1643828835681,11.26786684,2691.9,2691.7,0.0057948]
[1643828835682,10.26786684,2691.9,2691.7,0.0057948]
[1643828835877,9.49110663,2691.8,2691.7,0.0057948]
[1643828836076,9.49110663,2691.8,2690.3,3.11844433]
[1643828836077,5.45,2691.6,2690.3,3.11844433]
[1643828836280,1.0,2691.3,2691.0,0.00201349]
[1643828836576,1.0,2691.3,2690.2,4.04182866]
[1643828836577,3.2,2691.1,2690.3,0.1857]
[1643828836775,1.0,2691.0,2690.3,0.1857]
[1643828836976,1.18561,2691.0,2690.2,0.1857]
[1643828837175,0.18561,2691.0,2690.2,0.1857]
[1643828837574,0.18561,2691.0,2690.5,0.91129587]
[1643828838204,0.18561,2691.0,2690.5,0.91615599]
[1643828838801,0.18561,2691.2,2690.5,0.91615599]
[1643828839203,0.18561,2691.2,2690.6,0.00201411]
[1643828839404,0.18561,2691.2,2690.6,0.0068741]
[1643828839803,2.00485845,2691.5,2690.6,0.0068741]
[1643828840203,2.19046845,2691.5,2690.6,0.00485999]
[1643828840403,2.00485845,2691.5,2690.6,0.00687392]
[1643828840602,2.00485845,2691.5,2690.9,0.00485972]
[1643828840603,2.00971718,2691.5,2690.9,0.00485972]
[1643828840806,2.00485873,2691.5,2691.1,0.929]
[1643828841002,2.00485873,2691.5,2691.1,0.00201393]
[1643828841203,2.19046873,2691.5,2691.1,0.00201393]
[1643828841403,2.49046873,2691.5,2691.1,0.00201393]
[1643828841661,2.49046873,2691.5,2691.0,0.1857]
[1643828841862,2.49088903,2691.5,2691.2,0.00527963]
[1643828842062,0.18561,2691.3,2691.2,0.00527963]
[1643828842564,2.00527903,2691.5,2691.2,0.00527963]
[1643828842962,2.0079947,2691.5,2691.2,0.00527963]
[1643828843165,2.00271567,2691.5,2691.1,0.9317402]
[1643828843378,0.00271567,2691.5,2691.1,1.11604166]
[1643828843664,0.00271567,2691.5,2691.2,0.005]
[1643828843862,0.18561,2691.8,2691.2,0.005]
[1643828844064,0.18561,2692.0,2691.2,0.005]
[1643828844263,0.18561,2692.0,2691.8,0.85020205]
[1643828844462,0.18561,2692.0,2691.2,0.0070138]
[1643828844764,0.18561,2692.0,2691.3,0.1857]
[1643828844963,0.18561,2692.0,2691.4,0.0020138]
[1643828845404,0.00569422,2691.7,2691.4,0.74304979]
[1643828846303,0.19130422,2691.7,2691.4,0.74304979]
[1643828846503,0.18561,2691.7,2691.5,0.17491835]
[1643828846708,0.00569427,2691.7,2691.4,0.74304979]
[1643828847406,0.00569427,2691.7,2691.4,0.0020138]
[1643828847808,0.37131,2692.2,2691.5,0.19559275]
[1643828848005,0.00569427,2691.7,2691.5,0.19559275]
[1643828848205,0.00569427,2691.7,2691.6,0.94408162]
[1643828848408,0.00569427,2691.7,2691.4,0.0070138]
[1643828849052,0.00250301,2691.8,2691.4,0.0070138]
[1643828849250,0.00250301,2691.8,2691.4,0.0020138]
[1643828849650,0.00250301,2691.8,2691.5,0.89197543]
[1643828849850,0.67131,2692.2,2691.5,0.89197543]
[1643828850050,0.67131,2692.2,2691.6,0.0020138]
[1643828850258,0.00498066,2691.7,2691.3,0.1857]
[1643828850452,0.00498066,2691.7,2691.6,0.00092008]
[1643828850853,0.00498066,2691.7,2691.3,0.1857]
[1643828851054,0.18561,2691.8,2691.2,0.92407697]
[1643828851251,0.18561,2691.8,2691.3,0.00201368]
[1643828851453,0.19059062,2691.8,2691.3,0.00201368]
[1643828851852,0.00498062,2691.8,2691.3,0.00201368]
[1643828852652,0.00544011,2691.7,2691.3,0.18771368]
[1643828852906,0.00544011,2691.7,2691.3,0.19271368]
[1643828853812,0.00545452,2691.6,2691.3,0.19271368]
[1643828855011,0.00545456,2691.6,2691.3,0.19271368]
[1643828855411,0.00545456,2691.6,2691.4,0.00084387]
[1643828856211,0.00498947,2691.6,2691.4,6.46347161]
[1643828856416,8.947e-05,2691.6,2691.5,5.46206783]
[1643828856651,0.70570355,2693.6,2691.5,5.46206783]
[1643828856652,0.1857,2692.9,2691.6,5.45]
[1643828856851,0.11967,2693.2,2692.3,0.01264894]
[1643828857052,0.11967,2693.2,2692.4,0.1855]
[1643828857252,0.11967,2693.2,2692.5,0.92851]
[1643828857651,0.11967,2693.2,2692.8,0.85726918]
[1643828859850,0.0029487,2693.1,2692.8,0.85726918]
[1643828860705,0.0029487,2693.1,2692.9,0.00084349]
[1643828861104,0.00539829,2693.1,2693.0,5.6355]
[1643828861708,0.00539829,2693.1,2693.0,5.798124]
[1643828862104,0.07506829,2693.8,2693.1,2.1]
[1643828862306,0.00539819,2693.2,2693.1,2.1]
[1643828862908,0.00539819,2693.2,2693.0,1.1137]
[1643828863215,0.00539819,2693.2,2693.0,0.1855]
[1643828863408,0.25409315,2693.5,2692.9,0.00084349]
[1643828863607,1.57412,2693.4,2692.9,0.00084349]
[1643828863811,1.57412,2693.4,2692.9,0.9377353]
[1643828864051,1.87412,2693.4,2692.9,0.9377353]
[1643828864356,0.07506829,2693.3,2692.9,0.00084349]
[1643828865252,0.07506829,2693.3,2692.9,0.84926055]
[1643828865854,0.56056829,2693.6,2692.9,0.84926055]
[1643828866053,1.70570355,2694.1,2692.9,0.84926055]
[1643828866054,0.00577915,2693.2,2692.9,0.84926055]
[1643828867053,0.00577909,2693.2,2692.9,0.84926055]
[1643828867813,0.00577909,2693.2,2692.7,1.11392]
[1643828867814,0.00577909,2693.2,2692.7,0.1855]
[1643828868001,0.00577909,2693.2,2692.6,0.0008454]
[1643828868002,0.00577909,2693.2,2692.6,0.1863454]
[1643828869003,0.00577909,2693.2,2692.8,0.74119075]
[1643828869505,0.00577893,2693.2,2692.8,0.74119075]
[1643828870301,0.00577893,2693.2,2693.0,0.00084302]
[1643828870702,0.00483533,2693.2,2692.8,0.74119075]
[1643828871105,0.93372259,2694.5,2693.1,6.46208807]
[1643828871309,1.5736754,2694.4,2694.3,0.01256814]
[1643828871565,5.49638597,2695.3,2693.2,2.32397149]
[1643828871770,1.5736754,2695.2,2693.3,2.00906032]
[1643828871962,0.77945356,2694.5,2693.8,0.16089387]
[1643828872166,1.5736754,2694.4,2693.7,1.80149362]
[1643828872362,1.5736754,2694.4,2693.9,0.92809]
[1643828872764,1.5736754,2694.3,2693.9,0.92809]
[1643828872964,1.5736754,2694.2,2693.9,0.92809]
[1643828873165,0.1855,2695.2,2693.9,0.92809]
[1643828873367,1.0,2694.8,2693.6,3.89766]
[1643828873572,1.19953154,2694.5,2693.5,0.1855]
[1643828873766,1.75904893,2694.4,2693.0,6.3949]
[1643828873966,1.57354893,2694.3,2693.0,3.0393]
[1643828874166,0.1855,2694.2,2693.0,3.0393]
[1643828874366,0.71815546,2693.4,2693.0,5.0393]
[1643828874568,0.71815546,2693.4,2693.1,0.17929023]
[1643828874569,1.57354893,2693.3,2693.1,0.17929023]
[1643828874770,0.3,2693.3,2692.9,3.66041641]
[1643828875166,0.1855,2693.8,2692.9,0.01231641]
[1643828875398,1.5740505,2693.7,2692.9,0.01231641]
[1643828875594,1.5740505,2693.6,2693.1,0.00577376]
[1643828875796,0.84042248,2693.5,2693.1,0.00577376]
[1643828875994,1.5740505,2693.4,2693.1,0.00577376]
[1643828876198,0.1855,2693.9,2693.2,5.45]
[1643828876505,0.93423018,2694.7,2693.5,0.01268625]
[1643828876506,0.1855,2694.4,2693.5,0.01268625]
[1643828876699,0.1855,2694.6,2693.6,0.1855]
[1643828876997,0.1855,2694.6,2693.4,0.92814]
[1643828877303,1.40058389,2695.2,2694.5,0.85410456]
[1643828877501,1.40058389,2695.9,2694.5,0.85410456]
[1643828877900,1.40058389,2696.0,2694.5,0.85410456]
[1643828878097,1.40058389,2695.9,2694.5,0.85410456]
[1643828878301,1.40058389,2696.2,2695.5,0.81791877]
[1643828878503,1.40058389,2696.8,2695.8,0.01259126]
[1643828878700,1.40058389,2696.6,2694.8,2.1854]
[1643828878898,3.40581407,2697.3,2694.8,2.1854]
[1643828878899,1.3912209,2696.7,2694.8,2.1854]
[1643828879175,1.0,2697.0,2694.8,2.1854]
[1643828879467,0.15675463,2696.8,2695.9,0.18606541]
[1643828879667,0.73140364,2696.4,2695.9,0.18606541]
[1643828879871,1.85948422,2697.1,2695.9,0.18606541]
[1643828880073,1.0814588,2697.3,2695.9,0.18606541]
[1643828880074,35.93016317,2696.9,2695.9,0.18606541]
[1643828880272,0.005757,2696.5,2695.6,0.77587317]
[1643828880472,0.005757,2696.5,2695.7,2.0]
[1643828880672,0.005757,2696.5,2695.7,2.99999999]
[1643828880969,0.005757,2696.5,2696.4,0.66981045]
[1643828881169,35.02302453,2696.9,2696.4,0.16432988]
[1643828881170,2.3050665,2696.8,2696.4,0.16432988]
[1643828881371,35.02302453,2696.9,2696.4,0.16432988]
[1643828881570,0.021987,2696.6,2696.4,0.16432988]
[1643828881770,0.69756605,2697.0,2696.5,2.15]
[1643828882076,0.69778153,2697.4,2696.9,0.01262366]
[1643828882271,0.69778153,2697.5,2697.0,0.35948361]
[1643828882475,0.59778153,2697.5,2697.0,0.17428361]
[1643828882671,0.93745947,2697.7,2697.0,0.17428361]
[1643828882672,0.0072963,2697.7,2697.0,0.17428361]
[1643828882900,0.82506651,2697.6,2696.9,0.01262366]
[1643828883107,0.93016317,2697.5,2696.6,0.1852]
[1643828883301,0.93016317,2697.4,2696.3,0.1852]
[1643828883500,0.93016317,2697.3,2696.1,0.1854]
[1643828883701,0.93016317,2697.4,2696.0,0.1854]
[1643828883900,0.93534202,2696.8,2696.5,0.18989819]
[1643828884099,0.93534202,2696.8,2696.2,0.1854]
[1643828884300,1.23016317,2697.5,2696.2,0.1854]
[1643828884502,1.23016317,2697.5,2696.2,2.21932968]
[1643828884503,0.3,2697.5,2696.2,2.21932968]
[1643828884699,0.3072963,2697.7,2696.2,2.21932968]
[1643828884900,0.3072963,2697.7,2696.2,3.21932968]
[1643828885105,0.3072963,2697.7,2696.5,0.00575654]
[1643828885106,0.00575543,2697.0,2696.5,0.00575654]
[1643828885303,0.00575543,2697.0,2696.9,2.95025008]
[1643828886302,0.00575532,2697.1,2696.9,2.95025008]
[1643828887156,0.00575532,2697.1,2696.9,2.75]
[1643828887556,0.00575527,2697.1,2696.7,0.1852]
[1643828888155,0.00575527,2697.1,2696.7,0.33426636]
[1643828888358,0.00575527,2697.1,2696.7,2.36799075]
[1643828888656,0.00509706,2697.0,2696.7,0.33426636]
[1643828888860,0.00509706,2697.0,2696.7,1.33426636]
[1643828889057,0.00509706,2697.0,2696.7,0.33426636]
[1643828889256,0.00509706,2697.0,2696.8,2.03967061]
[1643828889459,0.00509706,2697.0,2696.7,0.33426636]
[1643828889756,0.00972665,2697.0,2696.7,1.33426636]
[1643828889957,0.00462959,2697.0,2696.7,1.33426636]
[1643828890312,1.06431434,2697.5,2696.8,0.000926]
[1643828890909,1.06431434,2697.5,2695.8,2.23045832]
[1643828890910,0.1852,2697.4,2696.3,0.1853]
[1643828891306,0.1852,2697.4,2696.9,0.16203184]
[1643828891909,0.1852,2697.4,2697.0,0.70711984]
[1643828892209,0.1852,2698.4,2697.0,0.70711984]
[1643828892409,5.4366,2698.4,2697.1,2.18195921]
[1643828892607,6.09128261,2698.4,2697.0,0.13819997]
[1643828892808,0.68988261,2698.2,2697.0,0.13819997]
[1643828893205,0.98988261,2698.2,2697.0,0.13819997]
[1643828893411,0.3,2698.2,2697.0,0.13819997]
[1643828893610,0.00536132,2697.7,2697.1,0.68094774]
[1643828894052,0.79278188,2697.6,2697.1,0.68094774]
[1643828894251,0.00536132,2697.7,2697.1,0.68094774]
[1643828894450,0.00536132,2697.7,2697.5,0.1925456]
[1643828894650,0.0053615,2697.5,2697.1,0.68094774]
[1643828895556,0.0352,2698.3,2697.1,0.68094774]
[1643828895751,5.4014,2698.4,2697.1,0.68094774]
[1643828895951,0.00557501,2697.4,2697.1,0.68094774]
[1643828896353,0.72508261,2698.8,2697.3,2.77681422]
[1643828896555,0.0352,2699.4,2698.4,0.01200001]
[1643828896852,1.52139329,2699.3,2697.8,0.1852]
[1643828897052,1.52139329,2699.3,2697.9,0.012403]
[1643828897252,0.0352,2699.2,2698.0,0.1852]
[1643828897454,0.73744929,2699.2,2698.5,0.01244421]
[1643828897929,0.73744929,2699.2,2698.1,1.0]
[1643828898120,0.73744929,2699.2,2698.2,2.26117522]
[1643828898313,0.0352,2699.5,2698.3,0.01231088]
[1643828898514,0.00244603,2699.0,2698.4,0.1852]
[1643828899114,0.00244603,2699.0,2698.4,0.181202]
[1643828899313,0.00244603,2699.0,2698.4,1.03499144]
[1643828899516,0.0053438,2698.8,2698.4,0.181202]
[1643828899816,0.0053438,2698.8,2697.9,0.1852]
[1643828900016,0.0053438,2698.8,2697.8,0.1852]
[1643828900217,0.0053438,2698.8,2697.7,0.00534612]
[1643828900414,0.16020577,2698.6,2697.7,0.00534612]
[1643828900620,0.91015853,2698.0,2697.3,0.93789682]
[1643828900814,0.91015853,2698.0,2697.7,0.00534575]
[1643828900815,1.16015853,2698.0,2697.7,0.00534575]
[1643828901015,0.3,2698.0,2697.7,0.00534575]
[1643828901550,2.09734893,2698.8,2697.4,0.1852]
[1643828901551,2.32693427,2698.8,2697.4,0.1852]
[1643828901853,2.66394646,2698.8,2697.1,0.1852]
[1643828902049,2.43092865,2698.7,2697.1,0.1852]
[1643828902250,0.15209556,2698.9,2697.9,0.14680326]
[1643828902451,0.15209556,2698.9,2697.6,0.70909659]
[1643828903051,0.15209556,2698.9,2697.6,0.7119122]
[1643828903255,0.84127542,2698.7,2698.1,0.84510359]
[1643828903553,0.03921,2698.6,2697.7,0.01274692]
[1643828904154,3.30308243,2699.3,2697.7,0.01274692]
[1643828904155,0.03921,2699.2,2698.5,0.17915685]
[1643828904556,0.03921,2699.3,2698.5,0.17915685]
[1643828904756,2.3497068,2699.3,2698.5,0.17915685]
[1643828904957,0.93989113,2699.0,2698.5,0.17915685]
[1643828905158,0.03921,2698.9,2698.5,0.17915685]
[1643828905808,0.03921,2698.9,2698.3,0.86158734]
[1643828906002,0.00565395,2699.0,2697.8,1.1852]
[1643828906203,0.03921,2698.9,2697.8,1.1852]
[1643828906401,0.03921,2698.9,2697.8,1.0]
[1643828906602,0.03921,2699.2,2697.7,0.19794692]
[1643828906904,7.33676392,2699.4,2698.2,0.16642426]
[1643828906905,6.04768036,2699.4,2698.2,0.16642426]
[1643828907104,0.92688533,2698.9,2698.2,0.83315715]
[1643828907306,0.3,2698.9,2697.8,0.1852]
[1643828907703,1.0,2699.3,2697.8,0.1852]
[1643828908110,1.48719963,2699.3,2698.4,0.14978109]
[1643828908310,0.86180187,2698.9,2698.2,0.89099165]
[1643828908505,0.86180187,2698.9,2697.8,0.1852]
[1643828908703,1.16180187,2698.9,2697.8,0.1852]
[1643828909149,0.86180187,2698.9,2697.8,2.27381305]
[1643828909353,5.35779775,2699.4,2697.9,0.19947442]
[1643828909549,5.35779775,2699.4,2698.0,0.1852]
[1643828909749,5.65779775,2699.4,2698.0,0.1852]
[1643828909949,5.35779775,2699.4,2698.0,0.1852]
[1643828910353,0.00572425,2698.8,2698.7,0.17039307]
[1643828910551,0.00572425,2698.8,2698.4,0.00572525]
[1643828911150,0.00572425,2698.8,2697.9,1.680355]
[1643828911353,0.20978,2700.1,2698.2,0.90756184]
[1643828911354,0.74223532,2698.9,2698.2,0.90756184]
[1643828911554,0.00569437,2698.8,2698.4,0.00569537]
[1643828912352,0.26620692,2698.8,2698.4,0.00569537]
[1643828912553,0.00569437,2698.8,2698.4,0.00569537]
[1643828912800,0.74223532,2698.9,2697.5,6.08696482]
[1643828912801,0.74223532,2698.9,2697.6,0.1852]
[1643828913003,5.6351,2698.8,2697.6,0.1852]
[1643828913400,5.6351,2698.8,2697.6,2.27599311]
[1643828913603,5.6351,2698.8,2697.6,1.1852]
[1643828913800,5.6351,2698.8,2698.1,0.1514442]
[1643828914000,5.4499,2698.8,2698.1,0.1514442]
[1643828914201,0.92743532,2698.9,2698.1,0.1514442]
[1643828914402,0.3,2698.8,2698.1,0.1514442]
[1643828914601,0.74223532,2698.9,2698.1,0.1514442]
[1643828915002,0.69223532,2698.9,2698.1,0.1514442]
[1643828915203,0.1852,2699.3,2698.8,0.14815959]
[1643828915204,0.02289281,2699.2,2698.8,0.14815959]
[1643828915411,0.02289281,2699.2,2698.4,0.77178568]
[1643828915603,0.02289281,2699.2,2698.3,0.00572521]
[1643828915803,0.87508261,2699.5,2698.3,0.00572521]
[1643828915804,0.10809281,2699.3,2698.3,0.00572521]
[1643828916406,0.0057242,2698.9,2698.8,0.14430768]
[1643828917253,1.57695347,2698.9,2698.8,0.14430768]
[1643828917454,1.57695347,2698.9,2697.7,1.85252]
[1643828917455,1.57122927,2698.9,2698.2,0.1852]
[1643828917653,1.57122927,2698.8,2698.2,0.1852]
[1643828917853,0.10809281,2699.3,2698.2,0.1852]
[1643828918055,1.57126499,2699.2,2698.1,0.1852]
[1643828918253,1.57126499,2699.2,2698.1,2.23583413]
[1643828918454,0.85469369,2699.1,2698.7,0.18526772]
[1643828918654,1.57126499,2699.0,2698.5,0.1852]
[1643828918862,1.57126499,2699.0,2697.7,2.86524496]
[1643828918863,2.2611476,2699.0,2698.2,0.1852]
[1643828919059,2.2611476,2699.0,2697.7,0.1852]
[1643828919060,0.68988261,2698.7,2697.7,0.1852]
[1643828919257,2.2611476,2698.6,2697.6,0.1852]
[1643828919454,2.2611476,2698.5,2697.5,6.08696482]
[1643828919656,0.3,2698.7,2697.5,6.08696482]
[1643828919657,2.2611476,2698.4,2697.5,6.08696482]
[1643828919954,2.2611476,2698.3,2697.5,6.08696482]
[1643828920156,1.57126499,2698.2,2698.0,0.00172748]
[1643828920599,2.2611476,2698.2,2698.0,0.00172748]
[1643828921000,0.90201492,2697.5,2697.1,0.1852]
[1643828921200,1.57126499,2697.4,2697.1,0.1852]
[1643828921405,1.57126499,2697.3,2697.1,0.1852]
[1643828921598,3.07524697,2697.9,2697.1,0.35640589]
[1643828921799,1.57181327,2697.8,2697.1,0.1852]
[1643828922000,3.00597172,2697.7,2697.1,0.1852]
[1643828922203,2.2681351,2697.6,2696.9,0.1852]
[1643828922501,2.5681351,2697.6,2696.8,0.32339997]
[1643828922699,1.57181327,2697.5,2696.8,0.13819997]
[1643828922902,0.77467324,2697.1,2696.8,0.13819997]
[1643828923100,0.77467324,2697.1,2696.3,0.1852]
[1643828923101,1.57181327,2697.0,2696.3,0.1852]
[1643828923600,1.57181327,2696.9,2696.8,2.60524998]
[1643828924251,0.69632183,2697.2,2696.8,2.60524998]
[1643828924451,0.69632183,2697.2,2696.8,2.79237395]
[1643828924652,2.2681351,2697.2,2696.8,2.79237395]
[1643828924851,2.2681351,2697.2,2696.8,2.78712397]
[1643828925452,1.57181327,2697.1,2696.8,2.78712397]
[1643828925650,1.57181327,2697.0,2696.8,2.78712397]
[1643828925849,1.57181327,2696.9,2696.8,2.78712397]
[1643828926051,0.69632183,2697.4,2696.9,0.00529201]
[1643828926251,0.69632183,2697.4,2697.3,0.16619208]
[1643828926454,0.69632183,2697.4,2696.9,1.67428352]
[1643828926654,2.26824294,2697.4,2696.9,1.00529201]
[1643828926852,2.26824294,2697.4,2696.9,0.00529201]
[1643828927251,2.26824294,2697.4,2696.8,0.004]
[1643828927451,1.57190062,2697.3,2696.8,0.004]
[1643828927651,1.57190062,2697.2,2696.8,0.004]
[1643828927904,1.57190062,2697.1,2696.8,0.004]
[1643828928207,1.57190062,2697.0,2696.8,0.004]
[1643828928404,0.69632183,2697.5,2696.9,0.88658356]
[1643828928609,2.26818048,2697.5,2696.9,1.09146457]
[1643828929209,2.26818048,2697.5,2696.9,0.20488101]
[1643828929805,2.26818048,2697.5,2697.1,0.00510054]
[1643828930207,2.26818048,2697.5,2697.4,0.19867205]
[1643828930606,0.69632183,2697.5,2697.4,0.19867205]
[1643828931006,0.69632183,2697.5,2696.7,0.1853]
[1643828931206,0.69632183,2697.5,2697.2,0.16576189]
[1643828932460,2.26818048,2697.5,2697.2,0.16576189]
[1643828932660,1.57185865,2697.4,2697.2,0.16576189]
[1643828932860,1.57185865,2697.3,2697.2,0.16576189]
[1643828933060,0.69632183,2697.5,2697.2,0.16576189]
[1643828933263,0.69870404,2697.5,2697.2,0.16576189]
[1643828933465,1.57185865,2697.4,2697.2,0.16576189]
[1643828933662,1.57185865,2697.3,2697.2,0.16576189]
[1643828933863,0.00238221,2697.5,2697.2,0.35096189]
[1643828934267,2.26818048,2697.9,2697.2,0.65096189]
[1643828934471,1.57185865,2697.8,2697.4,0.18581]
[1643828934671,1.57185865,2697.7,2697.2,2.57755189]
[1643828934873,1.57185865,2697.6,2697.2,2.57755189]
[1643828935072,1.57185865,2697.6,2697.2,1.65096189]
[1643828935328,1.57185865,2697.5,2697.4,1.76478]
[1643828935516,0.69632183,2698.1,2697.8,0.19058726]
[1643828935718,0.00529963,2697.5,2697.4,2.06478]
[1643828935918,0.00529963,2697.5,2697.2,1.1852]
[1643828936118,1.57154604,2697.4,2697.2,0.1852]
[1643828936718,1.57154604,2697.4,2697.3,3.43927372]
[1643828936918,1.57726535,2697.4,2697.3,3.43927372]
[1643828937319,1.57726535,2697.4,2697.3,4.43927372]
[1643828937919,1.57726535,2697.4,2697.3,3.43927372]
[1643828938120,1.57154604,2697.4,2697.3,4.43927372]
[1643828938320,1.57154604,2697.4,2697.3,6.20405372]
[1643828938619,1.57154604,2697.4,2697.3,6.50405372]
[1643828939053,1.57154604,2697.4,2697.3,4.43927372]
[1643828939357,0.1852,2698.2,2697.4,4.6]
[1643828939558,0.69632183,2698.4,2697.5,1.95059]
[1643828939762,0.1852,2698.5,2697.6,0.3]
[1643828939763,0.88152183,2698.5,2697.6,0.3]
[1643828939955,0.88152183,2698.5,2697.6,0.4852]
[1643828939956,0.69632183,2698.5,2697.6,0.4852]
[1643828940353,0.69632183,2698.5,2697.7,0.77095686]
[1643828940553,0.00476419,2698.2,2697.6,0.4852]
[1643828940953,0.00476419,2698.2,2697.6,0.1852]
[1643828941456,0.00476419,2698.2,2697.9,0.1505158]
[1643828941457,0.69632183,2698.2,2697.9,0.1505158]
[1643828941654,0.93943762,2698.1,2697.6,0.1852]
[1643828941857,0.00476432,2698.0,2697.6,0.1852]
[1643828942557,0.88152183,2697.9,2697.6,0.35795154]
[1643828942802,0.1852,2697.9,2697.6,0.35795154]
[1643828942999,0.1852,2697.9,2697.6,0.1852]
[1643828943198,0.18996441,2697.9,2697.6,0.1852]
[1643828943401,0.00476441,2697.9,2697.0,1.11189]
[1643828943600,0.00476441,2697.9,2697.0,2.11189]
[1643828943800,0.70108624,2697.9,2697.0,2.11189]
[1643828944001,0.70108624,2697.9,2697.0,1.1852]
[1643828944200,0.00256322,2697.6,2697.3,0.18719241]
[1643828945004,0.1852,2698.0,2697.3,0.18719241]
[1643828945201,0.1852,2698.0,2697.3,3.06438241]
[1643828945401,0.00256322,2697.6,2697.3,2.87857241]
[1643828945601,0.00256322,2697.6,2697.4,1.0]
[1643828946200,0.72033149,2698.1,2697.4,1.0]
[1643828946404,0.00256322,2697.6,2697.4,1.0]
[1643828947155,1.36921654,2698.1,2697.4,1.0]
[1643828947657,0.69632183,2698.1,2697.8,0.17667195]
[1643828947852,0.69632183,2698.1,2697.4,1.0]
[1643828947853,0.69632183,2698.1,2697.4,0.67667195]
[1643828948054,0.69632183,2698.2,2697.8,0.18820771]
[1643828948253,1.1024765,2698.4,2697.8,0.18820771]
[1643828948254,0.69632183,2698.1,2697.8,0.18820771]
[1643828950315,0.75879446,2697.1,2696.4,1.76478]
[1643828950510,0.75879446,2697.1,2696.3,1.11216]
[1643828950707,0.75879446,2697.1,2696.9,0.17508482]
[1643828950907,0.75879446,2697.1,2696.3,0.1852]
[1643828951109,0.70879446,2697.1,2696.3,0.1852]
[1643828951412,2.37531247,2697.3,2696.6,0.00572027]
[1643828951614,0.75051926,2696.8,2696.3,0.1852]
[1643828952009,0.75051926,2696.8,2696.7,0.14946642]
[1643828953411,0.1854,2697.0,2696.7,0.14946642]
[1643828954258,0.1854,2697.3,2696.7,0.14946642]
[1643828954459,0.1852,2697.4,2696.7,0.95314395]
[1643828954660,0.1852,2697.4,2696.7,0.14946642]
[1643828954859,0.72273525,2697.5,2696.7,0.14946642]
[1643828955563,1.41905708,2697.5,2696.7,0.14946642]
[1643828955759,0.89986394,2697.0,2696.7,0.14946642]
[1643828956657,0.89986394,2697.0,2696.5,0.1909209]
[1643828957459,0.90558325,2697.0,2696.5,0.19092053]
[1643828957905,0.90558325,2697.0,2696.6,0.14177376]
[1643828958508,0.01143862,2697.0,2696.6,0.14177376]
[1643828958708,0.00571931,2697.0,2696.6,0.14177376]
[1643828959307,1.57206105,2696.9,2696.6,0.14177376]
[1643828964557,0.00508598,2697.0,2696.8,1.11268]
[1643828964558,0.0097968,2697.0,2696.8,1.11268]
[1643828964755,0.00471082,2697.0,2696.8,3.33942]
[1643828964954,0.00471082,2697.0,2696.9,6.12263702]
[1643828965409,0.00471082,2697.0,2696.9,7.12263702]
[1643828965605,0.00471082,2697.0,2696.9,7.30844702]
[1643828965811,0.00471089,2697.1,2697.0,6.85348]
[1643828966208,0.45471089,2697.4,2697.1,4.24834184]
[1643828966608,0.45471089,2697.4,2697.2,1.0]
[1643828967208,0.45471089,2697.4,2697.3,0.92673]
[1643828968008,5.19,2697.7,2697.3,0.92673]
[1643828968213,0.00540548,2697.5,2697.3,0.92673]
[1643828969254,0.00540543,2697.5,2697.4,5.45]
[1643828969458,0.9172765,2698.6,2697.7,0.92655]